fUSD/lending_fUSD_20250814
["ID","MTS","AMOUNT","RATE_DAILY","PERIOD"]
[379115913,1755151838272,-152.67998887,0.000274,2]
[379115914,1755151838282,-152.67998887,0.000274,2]
[379115915,1755151838291,-152.67998887,0.000274,2]
[379115916,1755151838301,-1500.0,0.00027463,5]
[379115917,1755151838312,-3931.02299662,0.00027827,8]
[379115918,1755151838321,-506.62928472,0.00027948,5]
[379115919,1755151838331,-500.0,0.00028011,5]
[379115920,1755151838340,-213.72,0.00028212,2]
[379115921,1755151838350,-15777.86460878,0.00028659,2]
[379115922,1755151838359,-653.68159722,0.00028923,17]
[379115923,1755151838369,-524.6,0.00029023,2]
[379115924,1755151838378,-513.0,0.00029435,4]
[379115925,1755151838387,-1000.0,0.00029466,2]
[379115926,1755151838397,-810.0,0.00029466,2]
[379115927,1755151838406,-3369.0,0.00029466,2]
[379115928,1755151838415,-981.0,0.00029466,2]
[379115929,1755151838424,-565.0,0.00029466,2]
[379115930,1755151838433,-598.0,0.00029466,2]
[379115931,1755151838443,-1172.0,0.00029466,2]
[379115932,1755151838452,-717.0,0.00029566,2]
[379115933,1755151838462,-1241.395,0.00029566,2]
[379115934,1755151838471,-3178.0924123,0.00030095,2]
[379115935,1755151838480,-788.2716099,0.00030116,2]
[379115936,1755151838490,-156.41,0.00030137,2]
[379115937,1755151838499,-340.71,0.00030137,30]
[379115938,1755151838509,-15777.86460878,0.000303,2]
[379115939,1755151838519,-3931.02299662,0.00030754,14]
[379115940,1755151838528,-26890.41683604,0.00030885,2]
[379115941,1755151838542,-14350.44535485,0.00030885,2]
[379115942,1755151838551,-170.64,0.00031374,2]
[379115943,1755151838562,-340.71,0.00031394,30]
[379115944,1755151838572,-336.41,0.00031395,30]
[379115945,1755151838583,-163.27,0.00031429,120]
[379115946,1755151838593,-513.0,0.00031734,7]
[379115947,1755151838602,-15777.86460878,0.00031941,2]
[379115948,1755151838612,-40653.97,0.00032353,7]
[379115949,1755151838621,-8663.34810921,0.00032366,2]
[379115950,1755151838631,-1715.388,0.00032466,2]
[379115951,1755151838640,-715.0,0.00032566,2]
[379115952,1755151838649,-340.71,0.00032659,30]
[379115953,1755151838658,-1000.0,0.0003274,2]
[379115954,1755151838667,-1000.0,0.00032896,2]
[379115955,1755151838677,-485.9978715,0.000329,2]
[379115956,1755151838686,-3579.486,0.00032968,34]
[379115958,1755151838695,-176.46775384,0.00032968,34]
[379115960,1755151838705,-154.7512754,0.00033,2]
[379115962,1755151838715,-170.0,0.00033211,7]
[379115964,1755151838725,-15777.86460878,0.00033581,2]
[379115966,1755151838734,-3931.02299662,0.00033682,21]
[379115968,1755151838744,-182.5,0.00033859,2]
[379115970,1755151838753,-485.99787145,0.00033932,2]
[379115972,1755151838763,-200.0,0.00034,30]
[379115974,1755151838772,-524.6,0.00034001,4]
[379115976,1755151838782,-513.0,0.00034032,9]
[379115977,1755151838791,-213.86,0.00034386,2]
[379115979,1755151838801,-178.65,0.00034656,14]
[379115981,1755151838814,-15072.3617434,0.00034755,3]
[379115983,1755151838825,-42054.92,0.00034765,2]
[379115985,1755151838834,-159.89909214,0.00034773,2]
[379115987,1755151838844,-159.89849647,0.00034773,2]
[379115989,1755151838854,-159.86646837,0.00034773,2]
[379115991,1755151838863,-504.03834351,0.00034773,5]
[379115994,1755151838872,-500.0,0.00034773,5]
[379115996,1755151838882,-500.0,0.00034773,5]
[379115997,1755151838891,-500.0,0.00034773,5]
[379116000,1755151838900,-500.0,0.00034773,5]
[379116002,1755151838914,-500.0,0.00034773,5]
[379116004,1755151838923,-458.13769775,0.000348,3]
[379116006,1755151838933,-485.99787145,0.00034963,2]
[379116008,1755151838943,-150.0,0.00034984,2]
[379116010,1755151838953,-157.8165835,0.0003517,15]
[379116012,1755151838962,-15777.86460878,0.00035222,2]
[379116014,1755151838971,-7536.18087172,0.0003526,3]
[379116016,1755151838982,-300.0,0.0003527,2]
[379116018,1755151838992,-600.0,0.0003527,2]
[379116020,1755151839001,-160.0,0.0003527,2]
[379116022,1755151839011,-831.67097656,0.0003527,2]
[379116024,1755151839020,-1000.0,0.0003527,2]
[379116026,1755151839030,-151.0,0.0003527,2]
[379116028,1755151839039,-275.8080177,0.0003527,2]
[379116030,1755151839049,-151.0,0.0003527,2]
[379116032,1755151839061,-151.0,0.0003527,2]
[379116034,1755151839070,-151.0,0.0003527,2]
[379116036,1755151839080,-151.0,0.0003527,2]
[379116038,1755151839090,-152.84725903,0.0003527,2]
[379116040,1755151839101,-277.35679052,0.0003527,2]
[379116042,1755151839110,-159.83408516,0.0003527,2]
[379116044,1755151839120,-200.0,0.0003527,2]
[379116046,1755151839130,-200.0,0.0003527,2]
[379116048,1755151839139,-200.0,0.0003527,2]
[379116050,1755151839148,-200.0,0.0003527,2]
[379116052,1755151839157,-200.0,0.0003527,2]
[379116054,1755151839166,-200.0,0.0003527,2]
[379116056,1755151839177,-200.0,0.0003527,2]
[379116058,1755151839187,-200.0,0.0003527,2]
[379116060,1755151839196,-200.0,0.0003527,2]
[379116062,1755151839205,-200.0,0.0003527,2]
[379116064,1755151839215,-309.43969171,0.0003527,2]
[379116066,1755151839224,-500.0,0.000353,5]
[379116068,1755151839233,-1000.0,0.00035321,5]
[379116070,1755151839242,-1000.0,0.00035321,5]
[379116072,1755151839252,-1000.0,0.00035321,5]
[379116074,1755151839261,-1000.0,0.00035321,5]
[379116076,1755151839270,-7536.18087172,0.00035437,3]
[379116078,1755151839279,-5965.9210662,0.00035645,2]
[379116080,1755151839288,-320.65612154,0.00035667,5]
[379116082,1755151839297,-160.78147364,0.00035667,5]
[379116084,1755151839307,-500.0,0.00035667,5]
[379116086,1755151839317,-151.0,0.00035818,2]
[379116088,1755151839326,-151.0,0.00035818,2]
[379116090,1755151839336,-500.0,0.00035868,5]
[379116092,1755151839345,-639.15657067,0.00035868,5]
[379116094,1755151839355,-1000.0,0.00035868,5]
[379116096,1755151839365,-150.0,0.0003587,2]
[379116098,1755151839374,-157.81658343,0.00035881,15]
[379116100,1755151839384,-1000.0,0.00035989,120]
[379116102,1755151839393,-485.99787145,0.00035995,2]
[379116104,1755151839402,-1000.0,0.00036014,2]
[379116106,1755151839411,-262.03902713,0.00036034,2]
[379116108,1755151839421,-307.32972317,0.00036198,2]
[379116110,1755151839430,-472.50347974,0.00036215,5]
[379116112,1755151839440,-513.0,0.00036331,12]
[379116114,1755151839449,-7536.18087172,0.00036351,4]
[379116116,1755151839459,-352.62041922,0.00036361,2]
[379116118,1755151839468,-151.0,0.00036366,2]
[379116120,1755151839477,-151.0,0.00036366,2]
[379116122,1755151839486,-397.91111527,0.00036525,2]
[379116124,1755151839496,-157.81658343,0.00036591,15]
[379116126,1755151839505,-3931.02299662,0.00036609,27]
[379116128,1755151839514,-311.1,0.00036639,2]
[379116130,1755151839524,-160.0,0.00036639,2]
[379116132,1755151839533,-287.61899177,0.00036639,2]
[379116134,1755151839543,-443.20181131,0.00036689,2]
[379116136,1755151839552,-6461.4871014,0.00036809,2]
[379116138,1755151839563,-488.49250736,0.00036852,2]
[379116141,1755151839573,-15777.86460878,0.00036863,2]
[379116142,1755151839582,-151.0,0.00036914,2]
[379116145,1755151839592,-278.14644639,0.00036914,2]
[379116147,1755151839602,-7536.18087172,0.00036983,4]
[379116149,1755151839611,-151.0,0.00037,7]
[379116150,1755151839620,-151.0,0.00037,7]
[379116153,1755151839630,-151.0,0.00037,7]
[379116154,1755151839639,-533.78320341,0.00037016,2]
[379116157,1755151839649,-485.99787145,0.00037027,2]
[379116159,1755151839659,-5965.9210662,0.00037142,2]
[379116160,1755151839668,-579.07389945,0.0003718,2]
[379116162,1755151839678,-183.87172436,0.000372,120]
[379116165,1755151839687,-182.5,0.00037245,2]
[379116167,1755151839696,-157.81658343,0.00037302,15]
[379116168,1755151839706,-624.3645955,0.00037343,2]
[379116170,1755151839715,-368.70407923,0.000374,30]
[379116173,1755151839725,-154.9,0.00037453,60]
[379116175,1755151839734,-158.04,0.00037453,60]
[379116177,1755151839743,-151.0,0.00037462,2]
[379116179,1755151839753,-157.49,0.00037465,60]
[379116181,1755151839762,-669.65529155,0.00037507,2]
[379116183,1755151839771,-154.9,0.00037553,60]
[379116185,1755151839781,-157.49,0.00037565,60]
[379116186,1755151839791,-336.41,0.00037619,30]
[379116189,1755151839800,-170.64,0.00037649,2]
[379116191,1755151839810,-154.9,0.00037653,60]
[379116192,1755151839820,-158.04,0.00037653,60]
[379116195,1755151839829,-157.49,0.00037665,60]
[379116197,1755151839839,-714.94598759,0.0003767,2]
[379116199,1755151839848,-163.27,0.00037715,120]
[379116200,1755151839858,-7536.18087172,0.00037743,4]
[379116203,1755151839867,-154.9,0.00037753,60]
[379116205,1755151839876,-158.04,0.00037753,60]
[379116208,1755151839886,-157.49,0.00037765,60]
[379116210,1755151839895,-150.0,0.00037808,15]
[379116212,1755151839906,-150.0,0.00037808,2]
[379116214,1755151839916,-150.0,0.00037808,15]
[379116217,1755151839925,-150.0,0.00037808,15]
[379116220,1755151839935,-150.0,0.00037808,2]
[379116222,1755151839944,-500.0,0.00037808,15]
[379116224,1755151839954,-500.0,0.00037808,15]
[379116226,1755151839963,-150.0,0.00037808,15]
[379116229,1755151839977,-154.56212075,0.00037808,15]
[379116231,1755151839988,-607.0,0.00037808,15]
[379116233,1755151839998,-500.0,0.00037808,15]
[379116235,1755151840007,-150.0,0.00037808,15]
[379116237,1755151840017,-500.0,0.00037808,15]
[379116239,1755151840026,-760.23668364,0.00037834,2]
[379116241,1755151840036,-154.9,0.00037853,60]
[379116243,1755151840045,-158.04,0.00037853,60]
[379116245,1755151840055,-157.49,0.00037865,60]
[379116247,1755151840066,-154.9,0.00037953,60]
[379116249,1755151840076,-158.04,0.00037953,60]
[379116251,1755151840085,-158.04,0.00037953,60]
[379116253,1755151840095,-157.49,0.00037965,60]
[379116255,1755151840104,-805.52737968,0.00037998,2]
[379116258,1755151840117,-1807.91916726,0.00037999,4]
[379116260,1755151840131,-1000.0,0.00037999,4]
[379116314,1755151840635,-4728.26170446,0.00037999,4]
[379116316,1755151840645,-159.0,0.00038,120]
[379116318,1755151840654,-155.0,0.00038,120]
[379116320,1755151840663,-322.6107,0.00038008,2]
[379116322,1755151840673,-160.0,0.00038008,2]
[379116324,1755151840682,-298.26089446,0.00038008,2]
[379116326,1755151840692,-1037.0,0.00038009,2]
[379116328,1755151840702,-151.0,0.0003801,2]
[379116330,1755151840712,-157.81658343,0.00038012,15]
[379116332,1755151840721,-154.9,0.00038053,60]
[379116334,1755151840731,-158.04,0.00038053,60]
[379116336,1755151840740,-485.99787145,0.00038059,2]
[379116338,1755151840750,-157.49,0.00038065,60]
[379116340,1755151840759,-200.0,0.00038082,2]
[379116342,1755151840769,-150.0,0.00038082,15]
[379116344,1755151840779,-500.0,0.00038082,15]
[379116346,1755151840789,-500.0,0.00038082,15]
[379116348,1755151840798,-607.0,0.00038082,15]
[379116350,1755151840809,-500.0,0.00038082,15]
[379116352,1755151840818,-150.0,0.00038082,15]
[379116354,1755151840828,-500.0,0.00038082,15]
[379116356,1755151840837,-154.9,0.00038153,60]
[379116358,1755151840847,-158.04,0.00038153,60]
[379116360,1755151840856,-6390.69802699,0.00038155,4]
[379116365,1755151840893,-260.0,0.00038155,4]
[379116369,1755151840922,-357.0,0.00038155,4]
[379116371,1755151840933,-293.35564652,0.00038155,4]
[379116373,1755151840944,-5038.782729,0.00038155,4]
[379116523,1755151842366,-10268.70621269,0.00038155,4]
[379116525,1755151842376,-850.81807573,0.00038161,2]
[379116527,1755151842385,-1080.47571158,0.00038165,2]
[379116529,1755151842396,-1215.25,0.00038165,2]
[379116531,1755151842407,-3023.02569252,0.00038165,2]
[379116533,1755151842417,-2319.33787745,0.00038165,2]
[379116536,1755151842436,-2791.38347265,0.00038165,2]
[379116538,1755151842445,-711.72829581,0.00038165,2]
[379116541,1755151842464,-340.71,0.00033923,30]
[379116543,1755151842474,-4199.09959099,0.00038165,2]
[379116545,1755151842484,-335.11360901,0.00038165,2]
[379116548,1755151842499,-8917.82937009,0.00038165,2]
[379116550,1755151842508,-4356.846361,0.00038165,2]
[379116552,1755151842518,-8209.1353793,0.00038165,2]
[379116554,1755151842528,-7579.5328423,0.00038165,2]
[379116556,1755151842538,-3568.9034458,0.00038165,2]
[379116558,1755151842548,-3429.3144483,0.00038165,2]
[379116560,1755151842557,-157.49,0.00038165,60]
[379116562,1755151842566,-500.0,0.00038173,5]
[379116564,1755151842575,-503.00750875,0.00038173,5]
[379116566,1755151842585,-500.0,0.00038173,5]
[379116568,1755151842594,-159.89969323,0.00038173,2]
[379116570,1755151842603,-160.18872211,0.00038173,5]
[379116572,1755151842613,-500.0,0.00038173,5]
[379116574,1755151842623,-159.89948746,0.00038173,5]
[379116576,1755151842632,-159.89849516,0.00038173,2]
[379116578,1755151842642,-159.90985704,0.00038173,5]
[379116579,1755151842651,-500.0,0.00038173,5]
[379116580,1755151842660,-159.9005842,0.00038173,2]
[379116581,1755151842670,-500.40590492,0.00038173,5]
[379116582,1755151842679,-159.89914155,0.00038173,2]
[379116583,1755151842688,-159.90097722,0.00038173,2]
[379116584,1755151842698,-243.09128854,0.00038173,5]
[379116585,1755151842707,-159.89794123,0.00038173,2]
[379116586,1755151842716,-159.89799125,0.00038173,2]
[379116587,1755151842726,-530.09559838,0.00038173,5]
[379116588,1755151842735,-500.0,0.00038173,5]
[379116589,1755151842744,-500.0,0.00038173,5]
[379116590,1755151842755,-154.9,0.00038253,60]
[379116591,1755151842765,-158.04,0.00038253,60]
[379116592,1755151842775,-157.49,0.00038265,60]
[379116593,1755151842785,-1022.0,0.000383,2]
[379116595,1755151842794,-896.10877178,0.00038325,2]
[379116597,1755151842803,-7536.18087172,0.00038346,4]
[379116600,1755151842814,-154.9,0.00038353,60]
[379116603,1755151842823,-158.04,0.00038353,60]
[379116605,1755151842832,-6461.4871014,0.00038355,2]
[379116607,1755151842842,-352.0,0.00038356,120]
[379116609,1755151842851,-500.0,0.00038356,15]
[379116611,1755151842861,-500.0,0.00038356,15]
[379116613,1755151842870,-607.0,0.00038356,15]
[379116615,1755151842880,-500.0,0.00038356,15]
[379116617,1755151842890,-200.0,0.00038356,15]
[379116619,1755151842900,-500.0,0.00038356,15]
[379116621,1755151842912,-156.41,0.00038356,2]
[379116623,1755151842922,-214.62528094,0.00038356,2]
[379116625,1755151842931,-157.49,0.00038365,120]
[379116627,1755151842940,-352.0,0.00038366,120]
[379116629,1755151842951,-159.90069937,0.00038373,2]
[379116631,1755151842960,-159.90008634,0.00038373,2]
[379116633,1755151842969,-159.89948525,0.00038373,5]
[379116635,1755151842979,-159.89854232,0.00038373,2]
[379116637,1755151842990,-159.86769431,0.00038373,5]
[379116639,1755151843000,-352.0,0.00038376,120]
[379116642,1755151843009,-168.0,0.00038386,2]
[379116647,1755151843018,-7536.18087172,0.0003839,4]
[379116651,1755151843028,-168.0,0.00038395,2]
[379116655,1755151843037,-2000.0,0.000384,2]
[379116659,1755151843047,-3414.33089546,0.000384,120]
[379116663,1755151843057,-1000.0,0.000384,2]
[379116665,1755151843069,-986.78234034,0.00038437,120]
[379116667,1755151843078,-831.46877242,0.00038437,120]
[379116669,1755151843088,-154.9,0.00038453,120]
[379116671,1755151843097,-158.08,0.00038453,120]
[379116673,1755151843106,-157.49,0.00038465,120]
[379116675,1755151843116,-941.39946782,0.00038489,2]
[379116677,1755151843126,-928.0,0.00038498,120]
[379116679,1755151843136,-776.0,0.000385,2]
[379116681,1755151843146,-15777.86460878,0.00038503,2]
[379116683,1755151843156,-928.0,0.00038525,2]
[379116685,1755151843166,-154.9,0.00038553,120]
[379116687,1755151843175,-151.0,0.00038558,2]
[379116689,1755151843185,-157.49,0.00038565,120]
[379116691,1755151843194,-513.0,0.00038629,14]
[379116693,1755151843204,-500.0,0.0003863,15]
[379116695,1755151843213,-268.11588119,0.0003863,15]
[379116697,1755151843223,-607.0,0.0003863,15]
[379116699,1755151843232,-500.0,0.0003863,15]
[379116701,1755151843242,-151.7213497,0.0003863,15]
[379116703,1755151843251,-5965.9210662,0.0003864,2]
[379116705,1755151843261,-986.69016387,0.00038652,2]
[379116707,1755151843270,-154.9,0.00038653,120]
[379116709,1755151843279,-157.49,0.00038665,120]
[379116711,1755151843289,-19999.99,0.00038678,2]
[379116713,1755151843298,-3972.04,0.00038678,30]
[379116715,1755151843308,-165.84,0.00038713,2]
[379116717,1755151843319,-165.84,0.00038713,2]
[379116719,1755151843328,-505.64091826,0.00038721,5]
[379116721,1755151843339,-394.01574397,0.00038721,5]
[379116723,1755151843348,-157.81658343,0.00038723,15]
[379116725,1755151843358,-154.9,0.00038753,120]
[379116727,1755151843367,-157.49,0.00038765,120]
[379116729,1755151843377,-600.0,0.000388,14]
[379116731,1755151843386,-1031.98085992,0.00038816,2]
[379116733,1755151843396,-928.0,0.00038831,7]
[379116735,1755151843405,-168.0,0.00038836,2]
[379116737,1755151843415,-155.0,0.00038853,120]
[379116739,1755151843424,-227657.01865253,0.0003886,14]
[379116741,1755151843438,-47201.72628699,0.0003886,14]
[379116757,1755151843547,-32109.82596087,0.0003886,14]
[379116759,1755151843558,-2017.3,0.0003886,14]
[379116761,1755151843571,-418.55768,0.0003886,14]
[379117056,1755151846439,-468.83348409,0.00020099,2]
[379117058,1755151846451,-163.54049316,0.00020099,2]
[379117060,1755151846462,-534.35660016,0.00020099,2]
[379117062,1755151846472,-500.0,0.00020099,2]
[379117064,1755151846482,-500.0,0.00027397,2]
[379117066,1755151846491,-500.0,0.00027397,2]
[379117068,1755151846501,-500.0,0.00027397,2]
[379117070,1755151846511,-500.0,0.00027397,2]
[379117072,1755151846520,-500.0,0.00027397,2]
[379117074,1755151846529,-518.59104034,0.00027397,2]
[379117076,1755151846539,-400.0,0.00032877,7]
[379117078,1755151846548,-194.38781756,0.00035187,60]
[379117081,1755151846566,-146.32218244,0.00035187,60]
[379117083,1755151846576,-5593.26164229,0.00035645,2]
[379117086,1755151846591,-6107.44686484,0.00035645,2]
[379117089,1755151846611,-365.73537,0.00035645,2]
[379117091,1755151846630,-426.22,0.00035645,2]
[379117094,1755151846642,-1220.42492389,0.00035645,2]
[379117908,1755151854788,-14773.93062518,0.00035645,2]
[379117911,1755151854803,-340.71,0.00036451,60]
[379117914,1755151854817,-28487.0194262,0.00037243,2]
[379117916,1755151854833,-340.71,0.00037716,60]
[379117919,1755151854848,-28487.0194262,0.00038841,2]
[379117922,1755151854864,-274049.28022519,0.0003886,14]
[379117924,1755151854879,-157.52,0.00038865,120]
[379117927,1755151854893,-7536.18087172,0.0003889,4]
[379117929,1755151854909,-1200.0,0.000389,14]
[379117932,1755151854926,-556.0,0.00038904,15]
[379117935,1755151854941,-607.0,0.00038904,15]
[379117937,1755151854956,-500.0,0.00038904,15]
[379117940,1755151854971,-159.9005842,0.00038973,2]
[379117942,1755151854988,-159.89859532,0.00038973,2]
[379117945,1755151855003,-159.89969323,0.00038973,2]
[379117948,1755151855019,-160.19398503,0.00038973,5]
[379117949,1755151855035,-159.89914164,0.00038973,5]
[379117952,1755151855049,-190.60503963,0.00038973,5]
[379117954,1755151855064,-159.89849353,0.00038973,2]
[379117957,1755151855080,-159.89998551,0.00038973,2]
[379117960,1755151855095,-159.90003693,0.00038973,5]
[379117962,1755151855111,-159.90767191,0.00038973,2]
[379117965,1755151855126,-159.90013247,0.00038973,5]
[379117968,1755151855142,-159.89914155,0.00038973,5]
[379117970,1755151855158,-500.0,0.00038973,5]
[379117973,1755151855173,-159.89864465,0.00038973,5]
[379117975,1755151855188,-159.89849292,0.00038973,2]
[379117978,1755151855202,-128115.074819,0.0003898,4]
[379117981,1755151855218,-39338.5500666,0.0003898,4]
[379117983,1755151855232,-524.6,0.0003898,7]
[379117986,1755151855247,-1077.27155596,0.0003898,2]
[379117989,1755151855261,-1002.93419949,0.0003898,30]
[379117991,1755151855277,-152.161949,0.0003899,30]
[379117994,1755151855291,-151.0,0.0003899,30]
[379117996,1755151855306,-151.0,0.0003899,30]
[379117999,1755151855325,-151.0,0.0003899,30]
[379118000,1755151855340,-152.116689,0.0003899,30]
[379118001,1755151855355,-151.0,0.0003899,30]
[379118002,1755151855371,-151.0,0.0003899,30]
[379118003,1755151855385,-169.377952,0.0003899,30]
[379118004,1755151855400,-169.377952,0.0003899,30]
[379118005,1755151855415,-151.0,0.0003899,30]
[379118006,1755151855431,-151.0,0.0003899,30]
[379118007,1755151855446,-157.248518,0.0003899,30]
[379118009,1755151855461,-151.0,0.0003899,30]
[379118011,1755151855476,-18512.2588549,0.0003899,4]
[379118014,1755151855491,-151.0,0.0003899,30]
[379118016,1755151855506,-151.0,0.0003899,30]
[379118019,1755151855522,-151.0,0.0003899,30]
[379118022,1755151855537,-15000.0,0.00039,7]
[379118024,1755151855553,-15000.0,0.00039,7]
[379118027,1755151855568,-15000.0,0.00039,7]
[379118030,1755151855583,-15000.0,0.00039,7]
[379118032,1755151855598,-15000.0,0.00039,7]
[379118035,1755151855614,-15000.0,0.00039,7]
[379118038,1755151855630,-15000.0,0.00039,7]
[379118040,1755151855645,-15000.0,0.00039,7]
[379118043,1755151855661,-15000.0,0.00039,7]
[379118046,1755151855676,-160.50122871,0.00039,5]
[379118049,1755151855691,-151.0,0.00039,30]
[379118051,1755151855707,-168.0,0.00039006,2]
[379118054,1755151855723,-168.0,0.00039029,7]
[379118057,1755151855738,-168.0,0.00039074,2]
[379118059,1755151855754,-485.99787145,0.0003909,2]
[379118062,1755151855769,-500.0,0.00039096,2]
[379118065,1755151855784,-607.0,0.00039178,15]
[379118067,1755151855799,-500.0,0.00039178,15]
[379118070,1755151855814,-1800.0,0.000392,14]
[379118072,1755151855828,-168.0,0.0003925,2]
[379118075,1755151855843,-1000.0,0.00039288,2]
[379118077,1755151855859,-2400.0,0.000393,14]
[379118080,1755151855875,-928.0,0.00039307,7]
[379118082,1755151855888,-151.64,0.0003937,2]
[379118085,1755151855904,-1077.38,0.0003937,2]
[379118087,1755151855920,-331.68,0.0003937,2]
[379118090,1755151855935,-334.5472959,0.00039377,2]
[379118093,1755151855950,-160.0,0.00039377,2]
[379118095,1755151855965,-309.29654756,0.00039377,2]
[379118098,1755151855980,-3000.0,0.000394,14]
[379118100,1755151855995,-157.81658343,0.00039433,15]
[379118103,1755151856009,-2314.03235686,0.00039442,4]
[379118106,1755151856024,-607.0,0.00039452,15]
[379118108,1755151856040,-500.0,0.00039452,15]
[379118111,1755151856055,-150.0,0.00039452,15]
[379118113,1755151856069,-150.0,0.00039452,15]
[379118116,1755151856083,-150.0,0.00039452,15]
[379118153,1755151856416,-500.0,0.00039452,15]
[379118158,1755151856454,-150.79088083,0.00039452,15]
[379118160,1755151856472,-500.0,0.00039452,15]
[379118163,1755151856483,-150.000001,0.00039452,15]
[379118165,1755151856492,-500.0,0.00039452,15]
[379118167,1755151856503,-200.0,0.00039452,15]
[379118169,1755151856513,-500.0,0.00039452,15]
[379118171,1755151856524,-150.0,0.00039452,15]
[379118173,1755151856533,-204.4011667,0.00039452,15]
[379118175,1755151856543,-150.0,0.00039452,15]
[379118177,1755151856553,-150.0,0.00039452,15]
[379118179,1755151856563,-198.78042386,0.00039452,15]
[379118181,1755151856575,-152.26460721,0.00039452,15]
[379118183,1755151856584,-150.0,0.00039452,15]
[379118185,1755151856594,-2314.03235686,0.00039474,4]
[379118187,1755151856603,-1001.0,0.0003948,2]
[379118189,1755151856612,-600.0,0.000395,14]
[379118191,1755151856621,-1000.0,0.00039521,5]
[379118193,1755151856631,-2314.03235686,0.00039526,4]
[379118195,1755151856640,-3931.02299662,0.00039536,33]
[379118197,1755151856650,-1695.88125657,0.00039567,5]
[379118199,1755151856660,-600.0,0.000396,14]
[379118201,1755151856670,-5000.0,0.00039645,60]
[379118203,1755151856680,-4628.06471372,0.00039657,4]
[379118205,1755151856690,-151.0,0.00039667,7]
[379118207,1755151856699,-235.52053618,0.00039667,7]
[379118209,1755151856710,-151.0,0.00039667,7]
[379118211,1755151856720,-151.0,0.00039667,7]
[379118213,1755151856729,-151.0,0.00039667,7]
[379118215,1755151856739,-151.0,0.00039667,7]
[379118217,1755151856748,-154.10338004,0.00039667,7]
[379118219,1755151856758,-151.0,0.00039667,7]
[379118221,1755151856767,-1217.0,0.00039667,7]
[379118223,1755151856776,-151.0,0.00039667,7]
[379118225,1755151856786,-1217.0,0.00039667,7]
[379118227,1755151856795,-151.0,0.00039667,7]
[379118229,1755151856806,-1217.0,0.00039667,7]
[379118231,1755151856815,-151.0,0.00039667,7]
[379118233,1755151856825,-1217.0,0.00039667,7]
[379118235,1755151856834,-151.0,0.00039667,7]
[379118237,1755151856844,-1217.0,0.00039667,7]
[379118239,1755151856853,-151.0,0.00039667,7]
[379118241,1755151856862,-1217.0,0.00039667,7]
[379118243,1755151856871,-151.0,0.00039667,7]
[379118245,1755151856880,-1217.0,0.00039667,7]
[379118247,1755151856889,-151.0,0.00039667,7]
[379118249,1755151856898,-1217.0,0.00039667,7]
[379118251,1755151856909,-151.0,0.00039667,7]
[379118253,1755151856923,-1217.0,0.00039667,7]
[379118255,1755151856933,-151.0,0.00039667,7]
[379118257,1755151856941,-1217.0,0.00039667,7]
[379118259,1755151856951,-151.0,0.00039667,7]
[379118261,1755151856961,-151.0,0.00039667,7]
[379118263,1755151856972,-151.0,0.00039667,7]
[379118265,1755151856992,-1217.0,0.00039667,7]
[379118267,1755151857012,-151.0,0.00039667,7]
[379118269,1755151857023,-1217.0,0.00039667,7]
[379118271,1755151857032,-1217.0,0.00039667,7]
[379118273,1755151857042,-1217.0,0.00039667,7]
[379118275,1755151857051,-151.0,0.00039667,7]
[379118277,1755151857060,-1217.0,0.00039667,7]
[379118279,1755151857071,-151.0,0.00039667,7]
[379118281,1755151857080,-447.7077838,0.00039667,7]